fUSD/lending_fUSD_20250201
["ID","MTS","AMOUNT","RATE_DAILY","PERIOD"]
[351163491,1738380640881,-500.0,0.000187,2]
[351163492,1738380640890,-500.0,0.000187,2]
[351163493,1738380640899,-500.0,0.000187,2]
[351163494,1738380640909,-500.0,0.000187,2]
[351163495,1738380640918,-112.23254152,0.000187,2]
[351163496,1738380640930,-387.76745848,0.000187,2]
[351163497,1738380640939,-500.0,0.000187,2]
[351163498,1738380640950,-271.6649772,0.000187,2]
[351163499,1738380640962,-228.3350228,0.000187,2]
[351163500,1738380640972,-493.58549642,0.00018876,2]
[351163501,1738380640981,-900.0,0.00018876,2]
[351163502,1738380640991,-900.0,0.00018876,2]
[351163503,1738380641000,-900.0,0.00018876,2]
[351163504,1738380641009,-900.0,0.00018876,2]
[351163505,1738380641019,-150.0,0.00018876,2]
[351163506,1738380641029,-150.0,0.00018876,2]
[351163507,1738380641038,-150.39047979,0.00018876,2]
[351163508,1738380641047,-150.0,0.00018876,2]
[351163509,1738380641062,-57.84932093,0.00018878,2]
[351163510,1738380641082,-11148.5019612,0.00018878,2]
[351163511,1738380641104,-381.28266465,0.00018878,2]
[351163512,1738380641119,-1203.89796018,0.00018878,2]
[351163513,1738380641129,-305.34692135,0.00018879,2]
[351163514,1738380641140,-221.0094652,0.00018879,2]
[351163515,1738380641149,-873.35956895,0.00018879,5]
[351163516,1738380641159,-1035.00662202,0.00018879,5]
[351163517,1738380641168,-150.0,0.00018879,2]
[351163518,1738380641178,-500.0,0.00018879,2]
[351163519,1738380641187,-999.0,0.00018879,2]
[351163520,1738380641197,-1002.41833555,0.0001888,2]
[351163521,1738380641206,-53288.04548868,0.0001888,2]
[351163522,1738380641217,-456.875,0.0001888,2]
[351163523,1738380641229,-168588.94454194,0.0001888,2]
[351163524,1738380641248,-15381.33123423,0.0001888,2]
[351163525,1738380641259,-20926.00272574,0.0001888,2]
[351163526,1738380641275,-500.0,0.000187,2]
[351163527,1738380641284,-41469.44977884,0.0001888,2]
[351163528,1738380641296,-475.8703,0.0001888,2]
[351163534,1738380642463,-500.0,0.000187,2]
[351163535,1738380642472,-500.0,0.000187,2]
[351163536,1738380642482,-500.0,0.000187,2]
[351163537,1738380642491,-168.84497925,0.000187,2]
[351163538,1738380642503,-291.96488311,0.000187,2]
[351163539,1738380642606,-39.19013764,0.000187,2]
[351163540,1738380642615,-500.0,0.000187,2]
[351163541,1738380642624,-376.66771046,0.000187,2]
[351163542,1738380642636,-123.33228954,0.000187,2]
[351163543,1738380642646,-299.56771151,0.000187,2]
[351163544,1738380642658,-200.43228849,0.000187,2]
[351163545,1738380642667,-500.0,0.000187,2]
[351163546,1738380642677,-500.0,0.000187,2]
[351163547,1738380642686,-500.0,0.000187,2]
[351163548,1738380642695,-500.0,0.000187,2]
[351163549,1738380642705,-500.0,0.000187,2]
[351163550,1738380642714,-500.0,0.000187,2]
[351163551,1738380642723,-9093.31651151,0.0001888,2]
[351163552,1738380642734,-351.04387561,0.0001888,2]
[351163553,1738380642808,-500.0,0.000187,2]
[351163554,1738380642817,-1806.71483423,0.0001888,2]
[351163557,1738380642840,-500.0,0.000187,2]
[351163559,1738380642849,-456.75,0.0001888,2]
[351163561,1738380642861,-2079.02430681,0.0001888,2]
[351163564,1738380642871,-7133.64362223,0.0001888,2]
[351163566,1738380642884,-808.56973,0.0001888,2]
[351163568,1738380642896,-612.15360145,0.0001888,2]
[351163569,1738380642906,-732.39709636,0.0001888,2]
[351163570,1738380642917,-51503.86711108,0.0001888,2]
[351163571,1738380642928,-1324.08525546,0.0001888,2]
[351163572,1738380642938,-18587.40094578,0.0001888,2]
[351163573,1738380642950,-135311.00524484,0.0001888,2]
[351163574,1738380642961,-25893.7019215,0.0001888,2]
[351163575,1738380645544,-550.0,0.00013,2]
[351163576,1738380645555,-500.0,0.000187,2]
[351163577,1738380645565,-500.0,0.000187,2]
[351163578,1738380645575,-500.0,0.000187,2]
[351163579,1738380645585,-500.0,0.000187,2]
[351163580,1738380645594,-500.0,0.000187,2]
[351163581,1738380645604,-500.0,0.000187,2]
[351163582,1738380645613,-500.0,0.000187,2]
[351163583,1738380645622,-500.0,0.000187,2]
[351163584,1738380645632,-500.0,0.000187,2]
[351163585,1738380645644,-500.0,0.000187,2]
[351163586,1738380645654,-500.0,0.000187,2]
[351163587,1738380645664,-500.0,0.000187,2]
[351163588,1738380645674,-500.0,0.000187,2]
[351163589,1738380645683,-500.0,0.000187,2]
[351163590,1738380645692,-500.0,0.000187,2]
[351163591,1738380645702,-500.0,0.000187,2]
[351163592,1738380645712,-1598.0,0.00018879,2]
[351163593,1738380645721,-32832.36466038,0.0001888,2]
[351163594,1738380646110,-500.0,0.000187,2]
[351163595,1738380646119,-194326.46752269,0.0001888,2]
[351163596,1738380690894,150.0,0.00022177,120]
[351163598,1738380713924,271.53,0.00010137,2]
[351163599,1738380751160,150.0,0.0002141,120]
[351163600,1738380792531,500.0,0.00022008,120]
[351163601,1738380795176,2000.0,0.00022008,120]
[351163602,1738380795571,2000.0,0.00022999,120]
[351163603,1738380809221,200.0,0.00022008,120]
[351163604,1738380810733,150.0,0.00022421,120]
[351163605,1738380870719,150.0,0.00020974,120]
[351163606,1738380933811,150.0,0.00021073,120]
[351163607,1738380991342,150.0,0.00020825,120]
[351163608,1738381050770,150.0,0.00021159,120]
[351163609,1738381111408,150.0,0.00020992,120]
[351163610,1738381170713,150.0,0.00022772,120]
[351163611,1738381222721,3072.46163845,0.00023,120]
[351163612,1738381230775,150.0,0.00021203,120]
[351163613,1738381290759,150.0,0.00021038,120]
[351163614,1738381350790,150.0,0.00021857,120]
[351163615,1738381391864,500.0,0.00022125,120]
[351163616,1738381394317,2000.0,0.00022125,120]
[351163617,1738381406943,200.0,0.00022125,120]
[351163618,1738381411442,150.0,0.00021586,120]
[351163619,1738381470737,150.0,0.0002195,120]
[351163620,1738381530734,150.0,0.00020896,120]
[351163625,1738381590836,150.0,0.0002139,120]
[351163626,1738381614254,500.0,0.00023,120]
[351163627,1738381618799,2011.08,0.00023,120]
[351163628,1738381687569,197.72,0.00010137,2]
[351163630,1738381710798,150.0,0.00022189,120]
[351163631,1738381712404,7000.0,0.00023,120]
[351163634,1738381753721,3000.0,0.00023,120]
[351163636,1738381770758,150.0,0.00022124,120]
[351163638,1738381807775,3488.0,0.00023,120]
[351163647,1738381831760,-600.0,0.00015,2]
[351163648,1738381831770,-150.0,0.00015113,2]
[351163649,1738381831780,-839.72,0.00015821,2]
[351163650,1738381831789,-150.0,0.000165,2]
[351163651,1738381831799,-150.0,0.000165,2]
[351163652,1738381831809,-150.0,0.000165,2]
[351163653,1738381831818,-271.53,0.00016813,2]
[351163654,1738381831827,-500.0,0.00016822,2]
[351163655,1738381831836,-150.0,0.00016904,2]
[351163656,1738381831845,-900.0,0.00016922,2]
[351163657,1738381831855,-1000.0,0.00017357,2]
[351163658,1738381831864,-274.9,0.00017414,2]
[351163659,1738381831874,-271.03,0.00017622,2]
[351163660,1738381831885,-300.0,0.00017664,2]
[351163661,1738381831894,-4410.48742336,0.00017665,2]
[351163662,1738381831910,-639.900128,0.00017665,2]
[351163663,1738381831943,-320.51198734,0.00017665,2]
[351163664,1738381831988,-1598.5381823,0.00017665,2]
[351163665,1738381831999,-499.34874343,0.00017665,2]
[351163666,1738381832046,-2733.96353557,0.00017665,2]
[351163667,1738381832057,-29999.99,0.00017728,2]
[351163668,1738381832067,-1107.23,0.00017728,2]
[351163669,1738381832077,-355.74,0.00017969,2]
[351163670,1738381832087,-1099.18,0.00018,2]
[351163671,1738381832096,-500.0,0.00018018,2]
[351163672,1738381832105,-900.0,0.00018018,2]
[351163674,1738381832114,-1008.188,0.00018081,2]
[351163676,1738381832123,-1293.52,0.00018082,2]
[351163678,1738381832132,-984.07,0.00018082,2]
[351163680,1738381832141,-839.72,0.00018085,2]
[351163682,1738381832150,-150.0,0.00018094,2]
[351163683,1738381832159,-640.02,0.00018094,2]
[351163685,1738381832168,-150.0,0.00018094,2]
[351163687,1738381832177,-151.7,0.00018094,2]
[351163689,1738381832187,-150.0,0.00018094,2]
[351163691,1738381832196,-180.302,0.00018094,2]
[351163693,1738381832206,-167.282,0.00018094,2]
[351163695,1738381832214,-150.394,0.00018094,2]
[351163697,1738381832223,-774.41,0.00018493,2]
[351163698,1738381832232,-878.1,0.00018493,2]
[351163700,1738381832241,-774.41,0.00018493,2]
[351163702,1738381832250,-774.41,0.00018493,2]
[351163704,1738381832259,-774.41,0.00018493,2]
[351163706,1738381832269,-210.06,0.00018493,2]
[351163708,1738381832278,-173.74,0.000186,2]
[351163710,1738381832287,-2500.0,0.000186,2]
[351163712,1738381832295,-3000.0,0.0001869,2]
[351163713,1738381832304,-60704.16146919,0.000187,2]
[351163717,1738381832335,-1089.69,0.000187,2]
[351164104,1738381837714,-250.0,0.00018094,2]
[351164105,1738381837724,-242.373,0.00018094,2]
[351164106,1738381837734,-339.877,0.000187,2]
[351164107,1738381837745,-251.47,0.000187,2]
[351164108,1738381837765,-1783.55762026,0.000187,2]
[351164109,1738381837883,-3264.13760739,0.000187,2]
[351164110,1738381837894,-543.48961775,0.000187,2]
[351164112,1738381837913,-5508.92049053,0.000187,2]
[351164281,1738381839922,-561.43401148,0.000187,2]
[351164282,1738381840039,-70313.7865579,0.000187,2]
[351164283,1738381840049,-212.71800655,0.000187,2]
[351164284,1738381840060,-500.0,0.00018727,2]
[351164285,1738381840070,-1293.52,0.00018751,2]
[351164286,1738381840079,-5000.0,0.0001878,2]
[351164287,1738381840090,-658.74367117,0.0001878,2]
[351164288,1738381840100,-173.59773924,0.0001878,2]
[351164289,1738381840110,-525.88076336,0.0001878,2]
[351164290,1738381840120,-150.0,0.000188,6]
[351164291,1738381840131,-1000.0,0.000188,2]
[351164292,1738381840141,-1000.0,0.000188,5]
[351164293,1738381840152,-1000.0,0.000188,6]
[351164294,1738381840162,-507.62434666,0.00018873,2]
[351164295,1738381840172,-900.0,0.00018876,2]
[351164296,1738381840182,-900.0,0.00018876,2]
[351164297,1738381840191,-900.0,0.00018876,2]
[351164298,1738381840200,-900.0,0.00018876,2]
[351164299,1738381840209,-900.0,0.00018876,2]
[351164300,1738381840219,-900.0,0.00018876,2]
[351164302,1738381840229,-900.0,0.00018876,2]
[351164303,1738381840239,-900.0,0.00018876,2]
[351164304,1738381840247,-900.0,0.00018876,2]
[351164305,1738381840256,-900.0,0.00018876,2]
[351164306,1738381840265,-150.0,0.00018879,2]
[351164307,1738381840275,-500.0,0.00018879,2]
[351164308,1738381840284,-999.0,0.00018879,2]
[351164309,1738381840293,-20807.21776809,0.00018879,2]
[351164310,1738381840371,-259.71546597,0.00018879,2]
[351164311,1738381840405,-1600.99999997,0.00018879,2]
[351164322,1738381842659,-1817.67063,0.00018879,2]
[351164323,1738381842672,-1765.7713395,0.00018879,2]
[351164324,1738381842712,-512.6733,0.00018879,2]
[351164325,1738381842827,-4079.34492294,0.00018879,2]
[351164326,1738381842882,-512.36185,0.00018879,2]
[351164327,1738381842939,-74164.38696688,0.00018879,2]
[351164338,1738381845615,-527.077714,0.00018879,2]
[351164339,1738381845627,-274.1100093,0.00018879,2]
[351164340,1738381845672,-358.63137456,0.00018879,2]
[351164341,1738381845684,-44797.75189863,0.00018879,2]
[351164342,1738381845733,-9550.2,0.00018879,2]
[351164343,1738381845791,-60945.0,0.00018879,2]
[351164344,1738381845804,-370108.94844544,0.00018879,2]
[351164345,1738381845817,-432.3703992,0.00018879,2]
[351164346,1738381845850,-925995.6219621,0.00018879,2]
[351164347,1738381845984,-9522.52283834,0.00018879,2]
[351164348,1738381845995,-1112.07716116,0.00018879,2]
[351164421,1738381891217,150.0,0.00022716,120]
[351164422,1738381951571,150.0,0.00022448,120]
[351164423,1738381990781,630.691503,0.00022332,120]
[351164424,1738381993240,2000.0,0.00022332,120]
[351164425,1738382005142,200.0,0.00022332,120]
[351164429,1738382343191,4999.999999,0.00012,2]
[351164430,1738382459203,2777.31517245,0.00023,120]
[351164431,1738382592395,2000.0,0.00022313,120]
[351164432,1738382605322,200.0,0.00022313,120]
[351164450,1738383031936,-550.0,0.00013,2]
[351164451,1738383031946,-150.0,0.000143,2]
[351164452,1738383031955,-150.0,0.000143,2]
[351164453,1738383031965,-150.0,0.000143,2]
[351164454,1738383031974,-150.0,0.000143,2]
[351164455,1738383031984,-150.0,0.000143,2]
[351164456,1738383031993,-150.0,0.00014404,2]
[351164457,1738383032003,-600.0,0.00015,2]
[351164458,1738383032013,-815.85,0.0001572,2]
[351164459,1738383032022,-300.0,0.00016599,2]
[351164460,1738383032031,-371.2,0.000166,2]
[351164461,1738383032041,-2626.0,0.000166,2]
[351164462,1738383032051,-368.71,0.000166,2]
[351164463,1738383032061,-368.17,0.000166,2]
[351164464,1738383032070,-257.20546805,0.000166,2]
[351164465,1738383032082,-118.29453195,0.000166,2]
[351164466,1738383032092,-375.27,0.000166,2]
[351164467,1738383032102,-378.45,0.000166,2]
[351164468,1738383032111,-376.03,0.000166,2]
[351164469,1738383032120,-93.88603936,0.000166,2]
[351164470,1738383032141,-282.39396064,0.000166,2]
[351164471,1738383032151,-372.5,0.000166,2]
[351164472,1738383032160,-381.59,0.000166,2]
[351164473,1738383032169,-369.82,0.00016922,2]
[351164474,1738383032179,-76.29603936,0.00016922,2]
[351164475,1738383032190,-295.74396064,0.00016922,2]
[351164476,1738383032200,-379.39,0.00016922,2]
[351164477,1738383032210,-376.0,0.00016922,2]
[351164478,1738383032219,-268.70404386,0.00016922,2]
[351164479,1738383032230,-102.77595614,0.00016922,2]
[351164480,1738383032239,-370.17,0.00016922,2]
[351164481,1738383032248,-181.18613736,0.00016922,2]
[351164482,1738383032260,-718.81386264,0.00016922,2]
[351164483,1738383032269,-221.78,0.00017231,2]
[351164484,1738383032279,-47.74062316,0.0001726,2]
[351164485,1738383032315,-936.32937684,0.0001726,2]
[351164486,1738383032324,-298.46,0.0001726,2]
[351164487,1738383032333,-438.4,0.0001726,2]
[351164488,1738383032342,-984.07,0.00017278,2]
[351164489,1738383032351,-298.46,0.00017278,2]
[351164490,1738383032360,-291.27814446,0.00017278,2]
[351164491,1738383032371,-147.12185554,0.00017278,2]
[351164492,1738383032380,-298.46,0.00017278,2]
[351164493,1738383032389,-31.09326885,0.00017278,2]
[351164494,1738383032401,-287.36673115,0.00017278,2]
[351164495,1738383032410,-712.63326885,0.00017278,2]
[351164496,1738383032421,-271.43673115,0.00017278,2]
[351164497,1738383032430,-300.0,0.00017278,2]
[351164498,1738383032440,-996.56922,0.00017319,2]
[351164727,1738383037847,-3.43078,0.00017319,2]
[351164728,1738383037859,-317.11,0.00017322,2]
[351164729,1738383037873,-6645.71,0.0001777,2]
[351164730,1738383037883,-150.0,0.00017878,2]
[351164731,1738383037891,-438.4,0.00017878,2]
[351164732,1738383037901,-152.0,0.00017915,3]
[351164733,1738383037912,-815.85,0.00017984,2]
[351164734,1738383037921,-1039.64,0.00018,2]
[351164735,1738383037931,-2000.0,0.00018,2]
[351164736,1738383037941,-1000.1054003,0.00018,2]
[351164737,1738383037952,-2000.0,0.0001801,2]
[351164738,1738383037962,-500.0,0.00018018,2]
[351164739,1738383037971,-900.0,0.00018018,2]
[351164740,1738383037981,-380.42,0.00018018,2]
[351164741,1738383037992,-3707.598017,0.0001802,2]
[351164742,1738383038000,-951.032,0.0001802,2]
[351164743,1738383038010,-776.11,0.00018082,2]
[351164744,1738383038020,-984.07,0.00018082,2]
[351164745,1738383038030,-438.4,0.00018082,2]
[351164746,1738383038039,-298.46,0.00018082,2]
[351164747,1738383038048,-984.07,0.00018082,2]
[351164748,1738383038058,-1980.72,0.00018082,2]
[351164749,1738383038067,-438.4,0.00018082,2]
[351164750,1738383038075,-284.644,0.00018094,2]
[351164751,1738383038085,-150.362,0.00018094,2]
[351164752,1738383038094,-150.0,0.00018094,2]
[351164753,1738383038103,-680.85,0.00018278,2]
[351164754,1738383038112,-438.4,0.00018278,2]
[351164755,1738383038122,-984.07,0.00018278,2]
[351164756,1738383038130,-410.96,0.00018278,2]
[351164757,1738383038139,-301.31,0.00018278,2]
[351164758,1738383038148,-152.0,0.00018424,4]
[351164759,1738383038158,-642.0,0.00018575,2]
[351164760,1738383038168,-523.61082258,0.0001863,2]
[351164762,1738383038177,-441.59885251,0.0001863,2]
[351164763,1738383038186,-500.0,0.0001863,2]
[351164764,1738383038196,-500.0,0.0001863,2]
[351164765,1738383038205,-5014.73809811,0.0001863,2]
[351164766,1738383038215,-500.0,0.0001863,2]
[351164767,1738383038224,-500.0,0.0001863,2]
[351164769,1738383038233,-505.10658683,0.0001863,2]
[351164771,1738383038243,-510.73343564,0.0001863,2]
[351164773,1738383038251,-500.0,0.0001863,2]
[351164775,1738383038260,-500.0,0.0001863,2]
[351164776,1738383038269,-500.0,0.0001863,2]
[351164777,1738383038279,-225.82722229,0.0001863,2]
[351164779,1738383038289,-506.0899597,0.0001863,2]
[351164781,1738383038298,-500.0,0.0001863,2]
[351164783,1738383038307,-504.8055533,0.0001863,2]
[351164785,1738383038316,-500.0,0.0001863,2]
[351164787,1738383038326,-500.0,0.0001863,2]
[351164789,1738383038335,-500.0,0.0001863,2]
[351164791,1738383038343,-500.0,0.0001863,2]
[351164793,1738383038353,-500.0,0.0001863,2]
[351164795,1738383038362,-500.0,0.0001863,2]
[351164797,1738383038371,-500.0,0.0001863,2]
[351164799,1738383038380,-500.0,0.0001863,2]
[351164801,1738383038390,-517.22100502,0.0001863,2]
[351164803,1738383038400,-500.0,0.0001863,2]
[351164805,1738383038409,-500.0,0.0001863,2]
[351164807,1738383038419,-500.0,0.0001863,2]
[351164809,1738383038428,-500.0,0.0001863,2]
[351164811,1738383038437,-500.0,0.0001863,2]
[351164813,1738383038447,-500.0,0.0001863,2]
[351164814,1738383038456,-500.0,0.0001863,2]
[351164815,1738383038465,-500.0,0.0001863,2]
[351164816,1738383038475,-500.0,0.0001863,2]
[351164817,1738383038484,-500.0,0.0001863,2]
[351164818,1738383038494,-500.0,0.0001863,2]
[351164819,1738383038504,-500.0,0.0001863,2]
[351164820,1738383038513,-23869.44932246,0.0001863,2]
[351164821,1738383038526,-317.97500103,0.0001863,2]
[351164825,1738383039850,-467.92114803,0.0001863,2]
[351164826,1738383039970,-66593.72566942,0.0001863,2]
[351164827,1738383039980,-1000.0,0.00018677,2]
[351164828,1738383039992,-500.0,0.00018727,2]
[351164829,1738383040002,-776.11,0.00018751,2]
[351164830,1738383040012,-500.0,0.00018767,2]
[351164831,1738383040025,-500.0,0.00018767,2]
[351164832,1738383040041,-500.0,0.00018767,2]
[351164833,1738383040051,-500.0,0.00018767,2]
[351164834,1738383040060,-500.0,0.00018767,2]
[351164835,1738383040069,-500.0,0.00018767,2]
[351164836,1738383040078,-335.91208414,0.00018767,2]
[351164837,1738383040113,-197.39272428,0.00018767,2]
[351164838,1738383040122,-204.92625866,0.00018767,2]
[351164839,1738383040155,-204.81664453,0.00018767,2]
[351164840,1738383040164,-114.81295547,0.00018767,2]
[351164841,1738383040211,-385.18704453,0.00018767,2]
[351164842,1738383040221,-500.0,0.00018767,2]
[351164843,1738383040230,-500.0,0.00018767,2]
[351164844,1738383040239,-500.0,0.00018767,2]
[351164845,1738383040249,-500.0,0.00018767,2]
[351164846,1738383040258,-500.0,0.00018767,2]
[351164847,1738383040268,-500.0,0.00018767,2]
[351164848,1738383040278,-500.0,0.00018767,2]
[351164849,1738383040287,-500.0,0.00018767,2]
[351164850,1738383040297,-500.0,0.00018767,2]
[351164851,1738383040308,-512.5838802,0.00018767,2]
[351164852,1738383040318,-500.0,0.00018767,2]
[351164853,1738383040328,-500.0,0.00018767,2]
[351164854,1738383040339,-500.0,0.00018767,2]
[351164855,1738383040351,-500.0,0.00018767,2]
[351164856,1738383040366,-500.0,0.00018767,2]
[351164857,1738383040377,-500.0,0.00018767,2]
[351164858,1738383040386,-500.0,0.00018767,2]
[351164859,1738383040395,-500.0,0.00018767,2]
[351164860,1738383040405,-341.76045518,0.00018767,2]
[351164861,1738383040415,-5000.0,0.00018777,2]
[351164862,1738383040424,-586.56413539,0.0001878,2]
[351164863,1738383040434,-1520.44419184,0.0001878,2]
[351164864,1738383040444,-350.58717556,0.0001878,2]
[351164865,1738383040453,-500.0,0.00018799,2]
[351164866,1738383040463,-1830.76,0.00018799,2]
[351164867,1738383040473,-4253.77,0.00018799,2]
[351164868,1738383040482,-1971.48,0.00018799,2]
[351164870,1738383040492,-3648.43,0.00018799,2]
[351164872,1738383040501,-1216.89,0.00018799,2]
[351164874,1738383040511,-1709.17,0.00018799,2]
[351164875,1738383040520,-3022.65,0.00018799,2]
[351164877,1738383040531,-519.97,0.00018799,2]
[351164879,1738383040540,-500.0,0.00018799,2]
[351164881,1738383040549,-2343.87,0.00018799,2]
[351164883,1738383040558,-1442.23,0.00018799,2]
[351164885,1738383040568,-587.85,0.00018799,2]
[351164887,1738383040577,-3717.12,0.00018799,2]
[351164889,1738383040587,-2032.5,0.00018799,2]
[351164891,1738383040596,-3631.88,0.00018799,2]
[351164893,1738383040606,-646.5,0.00018799,2]
[351164895,1738383040615,-2489.92,0.00018799,2]
[351164897,1738383040625,-500.0,0.00018799,2]
[351164899,1738383040635,-2293.01,0.00018799,2]
[351164902,1738383040644,-838.28,0.00018799,2]
[351164904,1738383040653,-5438.80353341,0.000188,2]
[351164905,1738383040663,-1003.0,0.000188,2]
[351164907,1738383040672,-1000.0,0.000188,2]
[351164909,1738383040681,-1000.0,0.000188,2]
[351164911,1738383040691,-835.0,0.000188,3]
[351164913,1738383040700,-1000.0,0.000188,2]
[351164916,1738383040710,-150.0,0.000188,6]
[351164918,1738383040719,-314.45,0.00018859,2]
[351164920,1738383040728,-314.45,0.00018867,2]
[351164922,1738383040738,-634.12,0.00018868,2]
[351164924,1738383040747,-1823.06,0.00018868,2]
[351164926,1738383040756,-1246.19,0.00018868,2]
[351164928,1738383040765,-727.97,0.00018868,2]
[351164930,1738383040775,-500.0,0.00018869,2]
[351164932,1738383040785,-500.0,0.00018869,2]
[351164934,1738383040795,-783.71,0.00018869,2]
[351164936,1738383040804,-500.0,0.00018869,2]
[351164938,1738383040813,-2544.04,0.00018869,2]
[351164940,1738383040822,-500.0,0.00018869,2]
[351164941,1738383040831,-3429.51,0.00018869,2]
[351164943,1738383040840,-459.744784,0.00018869,2]
[351164946,1738383040850,-500.0,0.00018869,2]
[351164947,1738383040859,-170.635548,0.00018869,2]
[351164949,1738383040871,-1092.11,0.00018869,2]
[351164951,1738383040881,-162.123152,0.00018869,2]
[351164954,1738383040890,-6437.1,0.00018869,2]
[351164955,1738383040900,-2446.21,0.00018869,2]
[351164958,1738383040910,-500.0,0.00018869,2]
[351164959,1738383040919,-2594.09,0.00018869,2]
[351164961,1738383040929,-972.54,0.00018869,2]
[351164963,1738383040938,-537.975401,0.00018869,2]
[351164965,1738383040948,-84.33062676,0.00018869,2]
[351164968,1738383040964,-2656.69937324,0.00018869,2]
[351164970,1738383040974,-700.83267183,0.00018869,2]
[351164973,1738383040990,-500.0,0.00018868,2]
[351164975,1738383040999,-5.36627741,0.00018869,2]
[351164977,1738383041010,-877.18105076,0.00018869,2]
[351164979,1738383041019,-500.67,0.00018869,2]
[351164981,1738383041029,-500.0,0.00018869,2]
[351164983,1738383041039,-920.18,0.00018869,2]
[351164985,1738383041048,-500.0,0.00018869,2]
[351164987,1738383041057,-500.0,0.00018869,2]
[351164989,1738383041067,-742.25348327,0.00018869,2]
[351165061,1738383043212,-467.84499314,0.00018799,2]
[351165062,1738383043224,-32.15500686,0.00018799,2]
[351165063,1738383043233,-6017.47,0.00018799,2]
[351165064,1738383043243,-1220.00651673,0.00018869,2]
[351165065,1738383043252,-1501.82,0.00018869,2]
[351165066,1738383043262,-3428.87,0.00018869,2]
[351165068,1738383043273,-1216.2,0.00018869,2]
[351165070,1738383043282,-2638.05,0.00018869,2]
[351165071,1738383043291,-2327.34,0.00018869,2]
[351165073,1738383043300,-1593.58,0.00018869,2]
[351165075,1738383043310,-3627.16,0.00018869,2]
[351165077,1738383043319,-1017.74,0.00018869,2]
[351165079,1738383043328,-4562.86,0.00018869,2]
[351165081,1738383043337,-2903.74,0.00018869,2]
[351165083,1738383043346,-500.0,0.00018869,2]
[351165085,1738383043355,-2209.85,0.00018869,2]
[351165087,1738383043364,-1004.6,0.00018869,2]
[351165089,1738383043373,-15359.93178462,0.0001887,2]
[351165099,1738383046101,-438.4,0.000181,2]
[351165100,1738383046110,-120.37449965,0.00018869,2]
[351165102,1738383192615,2000.0,0.00022313,120]
[351165103,1738383203494,200.0,0.00022313,120]
[351165113,1738383793617,2000.0,0.00022313,120]
[351165114,1738383803395,200.0,0.00022313,120]
[351165116,1738384019755,302.0,0.00023,120]
[351165133,1738384220602,256.63,0.00010137,2]
[351165141,1738384232511,-761.31,0.00015425,2]
[351165143,1738384232520,-150.0,0.00015586,2]
[351165145,1738384232530,-202.0,0.0001577,2]
[351165147,1738384232539,-150.0,0.00015804,2]
[351165149,1738384232548,-202.0,0.0001615,2]
[351165151,1738384232557,-200.0,0.0001634,2]
[351165153,1738384232566,-153.0,0.00016363,2]
[351165155,1738384232575,-153.0,0.00016363,2]
[351165157,1738384232584,-153.0,0.00016363,2]
[351165159,1738384232594,-153.0,0.00016363,2]
[351165161,1738384232603,-153.0,0.00016363,2]